Cogmind - Beta 16 @@@ ROGUE MODE // 2026.01.16 @ 10:58:17 Player: Jiber Result: Destroyed by as-29390 with Assembled Rifle Performance ------------- Evolutions (0) 0 Regions Visited (4) 800 Robots Destroyed (17) 85 Value Destroyed (210) 210 Prototype IDs (4) 80 Alien Tech Used (0) 0 Bonus (-110) -110 TOTAL SCORE: 1065 Bonus ------- Friendly Fire -110 Cogmind --------- Core Integrity 0/250 Matter 300/300 Energy 150/150 System Corruption 0% Temperature Cool (20) Movement Core (550) Ox10 Location -9/Mines Parts ------- > --- POWER (1) -------- Light Angular Momentum Engine > --- PROPULSION (2) --- (None) > --- UTILITY (2) ------ Heat Sink Large Storage Unit > --- WEAPON (2) ------- Medium Laser Light Assault Rifle > --- INVENTORY (15) --- Light Ion Engine Light Ion Engine Heat Sink Visual Processing Unit Terrain Scanner Terrain Scan Processor Targeting Computer Shield Generator Medium Laser Medium Laser Medium Laser Light Assault Rifle Plasma Cutter Peak State ------------ > --- POWER ------------ Light Angular Momentum Engine > --- PROPULSION ------- Wheel Wheel > --- UTILITY ---------- Heat Sink Large Storage Unit > --- WEAPON ----------- Medium Laser Light Assault Rifle > --- INVENTORY -------- Light Ion Engine Light Ion Engine Heat Sink Visual Processing Unit Terrain Scanner Terrain Scan Processor Targeting Computer Shield Generator Medium Laser Medium Laser Medium Laser Light Assault Rifle Plasma Cutter [Rating: 12] Favorites ----------- Power Ion Engine Engine Ion Engine Propulsion Light Treads Treads Light Treads Wheel Wheel Utility Large Storage Unit Device Heat Sink Storage Large Storage Unit Weapon Light Assault Rifle Energy Gun Medium Laser Ballistic Gun Light Assault Rifle Build | -11 -10 -10 -10 -9 ------- Run | Yrd Mat Min Exi Min Slots Evolved . | . . . . . Power . | . . . . . Propulsion . | . . . . . Utility . | . . . . . Weapon . | . . . . . Parts Attached 19 | 6 4 . . 9 Power 5 | 1 1 . . 3 Engine 5 | 1 1 . . 3 Core . | . . . . . Reactor . | . . . . . Propulsion 5 | 2 . . . 3 Treads 2 | 2 . . . . Leg . | . . . . . Wheel 3 | . . . . 3 Hover . | . . . . . Flight . | . . . . . Utility 4 | 1 2 . . 1 Device 2 | . 1 . . 1 Storage 2 | 1 1 . . . Processor . | . . . . . Hackware . | . . . . . Protection . | . . . . . Artifact . | . . . . . Weapon 5 | 2 1 . . 2 Energy Gun 3 | 1 1 . . 1 Energy Cannon . | . . . . . Ballistic Gun 2 | 1 . . . 1 Ballistic Cannon . | . . . . . Launcher . | . . . . . Special Weapon . | . . . . . Impact Weapon . | . . . . . Slashing Weapon . | . . . . . Piercing Weapon . | . . . . . Special Melee Weapon . | . . . . . Unidentified Prototypes . | . . . . . Parts Lost 9 | . 1 . . 8 Power 3 | . . . . 3 Propulsion 4 | . . . . 4 Utility . | . . . . . Weapon 2 | . 1 . . 1 Highest Loss Streak 2 | . 1 . . 2 To Critical Strikes . | . . . . . Average Backups 8 | . 4 9 9 12 Power . | . . 1 1 1 Propulsion . | . . . . . Utility 3 | . 1 4 4 5 Weapon 3 | . 2 4 4 4 Tool/Special . | . . . . . Unused Backups 13 | . . . . 13 Power 2 | . . . . 2 Propulsion . | . . . . . Utility 6 | . . . . 6 Weapon 4 | . . . . 4 Tool/Special 1 | . . . . 1 Average Slot Usage (%) 98 | . 95 100 100 97 Engine 13 | . 14 14 14 13 Treads 25 | . 28 28 28 18 Wheel 2 | . . . . 7 Device 13 | . 10 14 14 14 Storage 14 | . 14 14 14 14 Energy Gun 13 | . 13 14 14 13 Ballistic Gun 14 | . 14 14 14 14 Peak Build Rating 12 | 6 8 8 8 12 Average Rating 7 | 4 6 8 8 8 On Entrance 6 | . 6 8 8 8 Avg Prop Armor Cover (%) 9 | . . . . 9 Naked Turns . | . . . . . Heaviest Build 33 | 11 29 29 29 33 Greatest Support 40 | 40 40 40 40 40 Greatest Overweight (x) 10 | 1 . . . 10 Average Overweight (x) . | . . . . . Largest Inventory Capacity 15 | 8 15 15 15 15 Average Capacity 14 | 6 14 15 15 15 Most Carried 15 | 3 9 9 9 15 Average Carried 8 | . 4 9 9 12 Final Capacity 15 | 8 15 15 15 15 Final Carried 13 | . 9 9 9 13 Class Distribution -------------------- 94% | Mutant 5% | Scavenger-Mutant Dominant Class ---------------- Mutant | -10/Materials Mutant | -10/Mines Mutant | -10/Exiles Mutant | -9/Mines Resources | -11 -10 -10 -10 -9 ----------- Run | Yrd Mat Min Exi Min Matter Collected 444 | 215 113 . . 116 Remotely . | . . . . . Salvage Created 388 | . 261 . . 127 Parts 29 | . 23 . . 6 Haulers Intercepted . | . . . . . Recyclers Shooed 1 | . . . . 1 Parts Field Recycled . | . . . . . Retrieved Matter . | . . . . . Parts Self-Destructed . | . . . . . Prevented . | . . . . . Parts Restored . | . . . . . Kills | -11 -10 -10 -10 -9 ------- Run | Yrd Mat Min Exi Min Combat Hostiles Destroyed 12 | . 6 . . 6 Guns 12 | . 6 . . 6 Classes Destroyed 6 | . 5 . . 1 Worker 4 | . 4 . . . Builder 1 | . 1 . . . Watcher 1 | . 1 . . . Swarmer 7 | . 3 . . 4 Grunt 3 | . 3 . . . Assembled 2 | . . . . 2 Thug 1 | . . . . 1 Best Kill Streak 5 | . 5 . . 3 Combat Bots Only 3 | . 2 . . 3 Max Kills in Single Turn 1 | . 1 . . 1 Gunslinging . | . . . . . Exploded . | . . . . . Melee . | . . . . . Uniques/NPCs Destroyed . | . . . . . Combat | -11 -10 -10 -10 -9 -------- Run | Yrd Mat Min Exi Min Hostile Shots Fired 132 | . 51 . . 81 Missed 36 | . 13 . . 23 Hits 96 | . 38 . . 58 Melee 9 | . . . . 9 Projectile 87 | . 38 . . 49 Critical Strikes 2 | . 2 . . . Part Disruptions 4 | . . . . 4 Damage Taken 1195 | . 394 . . 801 Core 253 | . 61 . . 192 Absorbed by Shields . | . . . . . Core Remaining (%) 100 | 100 . . . . Volleys Fired 71 | . 34 . . 37 Largest 2 | . 2 . . 2 Hottest 70 | . 70 . . 70 Shots Fired 131 | . 65 . . 66 Gun 131 | . 65 . . 66 Cannon . | . . . . . Launcher . | . . . . . Special . | . . . . . Kinetic 71 | . 34 . . 37 Thermal 53 | . 27 . . 26 Explosive . | . . . . . Electromagnetic 7 | . 4 . . 3 Robot Hit Streak 8 | . 6 . . 8 Robot Miss Streak 5 | . 5 . . 5 Penetration Max . | . . . . . Secondary Targets . | . . . . . Shots Hit Robots 68 | . 35 . . 33 Core Hits 39 | . 23 . . 16 Critical Kills . | . . . . . Critical Parts Destroyed . | . . . . . Critical Strikes 1 | . 1 . . . Burn 1 | . 1 . . . Melee Attacks . | . . . . . Impact . | . . . . . Slashing . | . . . . . Piercing . | . . . . . Sneak Attacks . | . . . . . Combat Hostiles . | . . . . . Follow-up Attacks . | . . . . . Damage Inflicted 690 | . 384 . . 306 Guns 654 | . 358 . . 296 Cannons . | . . . . . Explosions . | . . . . . Melee . | . . . . . Ramming 36 | . 26 . . 10 Kinetic 333 | . 175 . . 158 Thermal 295 | . 171 . . 124 Explosive . | . . . . . Electromagnetic 26 | . 12 . . 14 Impact . | . . . . . Slashing . | . . . . . Piercing . | . . . . . Highest Corruption . | . . . . . Average Corruption . | . . . . . Corruption Purged . | . . . . . Corruption Blocked . | . . . . . Overload Shots . | . . . . . Overflow Damage . | . . . . . Projectiles . | . . . . . Explosions . | . . . . . Melee . | . . . . . Knockbacks . | . . . . . Impact . | . . . . . Kinetic . | . . . . . Secondary . | . . . . . Self-Inflicted Damage 3 | . . . . 3 Shots . | . . . . . Rammed 8 | . 5 . . 3 Targets Rammed 9 | . 6 . . 3 Kicked . | . . . . . Crushed 1 | . 1 . . . Highest Temperature 46 | . 46 . . 34 Average Temperature 11 | . 13 . . 8 Received Heat Transfer 406 | . 159 . . 247 Siege Activations . | . . . . . Martial Activations . | . . . . . Shielding Activations . | . . . . . Robots Disrupted . | . . . . . Combat Hostiles . | . . . . . Robots Corrupted . | . . . . . Combat Hostiles . | . . . . . Parts Fried . | . . . . . Impact Corruptions . | . . . . . Robots Melted . | . . . . . Combat Hostiles . | . . . . . Parts Melted 1 | . . . . 1 Heat Transferred 962 | . 592 . . 370 Parts Sabotaged . | . . . . . Parts Stolen . | . . . . . Parts Stripped . | . . . . . Power Chain Reactions . | . . . . . Alert | -11 -10 -10 -10 -9 ------- Run | Yrd Mat Min Exi Min Maximum Alert Level . | . . . . . Low Security (%) 100 | 100 100 100 . 100 Level 1 . | . . . . . Level 2 . | . . . . . Level 3 . | . . . . . Level 4 . | . . . . . Level 5 . | . . . . . High Security . | . . . . . Max Security . | . . . . . Peak Influence 85 | . 75 . . 85 Initial . | . . . . . Average 16 | . 25 . . 12 Influence Increases 306 | . 201 . . 105 Destroy 0b10 Robot/C 200 | . 120 . . 80 Destroy 0b10 Robot/NC 30 | . 30 . . . Destroy Leader 32 | . 22 . . 10 Successful Hack 28 | . 28 . . . Destroy Structure 1 | . 1 . . . Lose Combat Pursuer 15 | . . . . 15 Influence Decreases 306 | . 198 3 . 105 Entered New Map 3 | . . 3 . . Time Decay 295 | . 190 . . 105 Lost Part 8 | . 8 . . . Squads Dispatched . | . . . . . Investigation . | . . . . . Extermination . | . . . . . Reinforcement . | . . . . . Assault . | . . . . . Garrison . | . . . . . Intercept . | . . . . . Searches Triggered . | . . . . . Construction Impeded . | . . . . . Haulers Reinforced . | . . . . . Active Scanning Responses . | . . . . . Cargo Convoy Interrupts . | . . . . . Stealth | -11 -10 -10 -10 -9 --------- Run | Yrd Mat Min Exi Min Distress Signals 1 | . 1 . . . Communications Jammed . | . . . . . Distress Signals . | . . . . . Times Spotted 30 | . 11 . . 19 Peak Tracking Total 8 | . 4 . . 8 Tactical Retreats 3 | . . . . 3 Traps | -11 -10 -10 -10 -9 ------- Run | Yrd Mat Min Exi Min Traps Triggered . | . . . . . Indirectly . | . . . . . Trap Hack Attempts . | . . . . . Triggered . | . . . . . Disarmed . | . . . . . Reprogrammed . | . . . . . Reused . | . . . . . Traps Extracted . | . . . . . Installed . | . . . . . Triggered . | . . . . . Machines | -11 -10 -10 -10 -9 ---------- Run | Yrd Mat Min Exi Min Machines Disabled 1 | . 1 . . . Max in Single Turn 1 | . 1 . . . Machines Repaired . | . . . . . Machines Dismantled . | . . . . . Machines Sabotaged . | . . . . . Overloaded Fab Kills . | . . . . . Hacking | -11 -10 -10 -10 -9 --------- Run | Yrd Mat Min Exi Min Machines Accessed 6 | . 2 . 4 . Terminals 2 | . 2 . . . Fabricators . | . . . . . Repair Stations . | . . . . . Recycling Units . | . . . . . Scanalyzers . | . . . . . Garrison Access . | . . . . . Total Hacks 55 | . 6 . 49 . Successful 52 | . 3 . 49 . Failed 3 | . 3 . . . Catastrophic . | . . . . . Database Lockouts . | . . . . . Manual 1 | . . . 1 . Terminals 6 | . 6 . . . Fabricators . | . . . . . Repair Stations . | . . . . . Recycling Units . | . . . . . Scanalyzers . | . . . . . Garrison Access . | . . . . . Terminal Hacks 52 | . 3 . 49 . Record 49 | . . . 49 . Prototype ID Bank 2 | . 2 . . . Zone Layout 1 | . 1 . . . Fabricator Hacks . | . . . . . Repair Station Hacks . | . . . . . Recycling Unit Hacks . | . . . . . Scanalyzer . | . . . . . Garrison Access Hacks . | . . . . . Unauthorized Hacks . | . . . . . Terminals . | . . . . . Fabricators . | . . . . . Repair Stations . | . . . . . Recycling Units . | . . . . . Scanalyzers . | . . . . . Garrison Access . | . . . . . Data Cores Recovered . | . . . . . Used . | . . . . . Hacking Detections 2 | . 2 . . . Full Trace Events 2 | . 2 . . . Feedback Events . | . . . . . Feedback Blocked . | . . . . . Robot Schematics Acquired . | . . . . . Robots Built . | . . . . . Authchips . | . . . . . Time . | . . . . . Total Robot Build Rating . | . . . . . Part Schematics Acquired . | . . . . . Parts Built . | . . . . . Authchips . | . . . . . Time . | . . . . . Total Part Build Rating . | . . . . . Part Studies Acquired . | . . . . . Parts Repaired . | . . . . . Time . | . . . . . Parts Recycled . | . . . . . Recycled Matter . | . . . . . Retrieved Matter . | . . . . . Retrieved Components . | . . . . . Parts Scanalyzed . | . . . . . Part Schematics Acquired . | . . . . . Parts Damaged . | . . . . . Bothacking | -11 -10 -10 -10 -9 ------------ Run | Yrd Mat Min Exi Min Used RIF Installer . | . . . . . Robots Hacked . | . . . . . Non-combat . | . . . . . Combat . | . . . . . Robot Hacks Applied . | . . . . . Relay Couplers Released . | . . . . . Fabnet Peak Effective % . | . . . . . Robots Rewired . | . . . . . Allies Hacked . | . . . . . Hacks Repelled . | . . . . . Allies | -11 -10 -10 -10 -9 -------- Run | Yrd Mat Min Exi Min Total Allies . | . . . . . Largest Group . | . . . . . Highest-Rated Group . | . . . . . Highest-Rated Ally . | . . . . . Total Orders . | . . . . . Ally Attacks . | . . . . . Total Damage . | . . . . . Kills . | . . . . . Allies Corrupted . | . . . . . Allies Melted . | . . . . . Intel | -11 -10 -10 -10 -9 ------- Run | Yrd Mat Min Exi Min Active Infowar (turns) . | . . . . . Robot Analysis Total . | . . . . . Derelict Logs Recovered 2 | . . . . 2 Drone Launches . | . . . . . Drone Recoveries . | . . . . . Exploration | -11 -10 -10 -10 -9 ------------- Run | Yrd Mat Min Exi Min Turns Passed 2583 | 61 484 16 1320 702 Spaces Moved 1520 | 42 228 11 826 413 Core 21 | 20 . . . 1 Treads 1332 | 22 228 11 826 245 Legs . | . . . . . Wheels 167 | . . . . 167 Hover . | . . . . . Flight . | . . . . . Fastest Speed 50 | 50 160 160 160 95 Average Speed 153 | 119 160 160 160 139 Slowest Speed 550 | 160 160 160 160 550 Overloaded Moves . | . . . . . Propulsion Burnouts . | . . . . . Robots Hopped . | . . . . . Potential Cave-ins . | . . . . . Cave-ins Triggered . | . . . . . Exploration Rate (%) 40 | 3 42 6 92 60 Regions Visited 4 Branch Regions 3 Pre-discovered Areas 1 | . . . 1 . Known Exits Taken . | . . . . . Unknown Exits Taken 4 | 1 1 1 1 . Scrap Searched 2 | . . . . 2 Spaces Dug . | . . . . . Terrain Destroyed . | . . . . . Melee . | . . . . . Projectile . | . . . . . AOE . | . . . . . Terrain Rammed . | . . . . . Walls Destroyed . | . . . . . Machines Disabled . | . . . . . Actions | -11 -10 -10 -10 -9 --------- Run | Yrd Mat Min Exi Min Total 1655 | 53 286 10 825 481 Wait 2 | . . . . 2 Move 1516 | 41 227 10 825 413 Hop . | . . . . . Pick Up 32 | 6 13 . . 13 Fast Attach . | . . . . . Attach 15 | 6 3 . . 6 Detach . | . . . . . Swap 5 | . 1 . . 4 Drop 5 | . 2 . . 3 Fire 71 | . 34 . . 37 Melee . | . . . . . Ram 1 | . . . . 1 Kick . | . . . . . Crush 8 | . 6 . . 2 Escape Stasis . | . . . . . Rewire . | . . . . . Trap . | . . . . . Miscellaneous . | . . . . . Route ------- -11/Scrapyard -10/Materials (discovered 2 exits: [*Mat] / [*Min]) -10/Mines -10/Exiles (discovered 2 exits: [*Min x2]) -9/Mines (discovered 1 exit: [*Mat]) History --------- Turn | Location | Event 3 | -11/Scrapyard | Discovered new exit (range 16) 62 | -11/Scrapyard | Entered Materials 235 | -10/Materials | Discovered new exit (range 14) 305 | -10/Materials | Build established: Mutant 399 | -10/Materials | Discovered new exit (range 12) 546 | -10/Materials | Entered Mines 554 | -10/Mines | Deemed a non-threat by the Exiles lab entrance 556 | -10/Mines | Discovered new exit (range 5) 562 | -10/Mines | Entered Exiles 593 | -10/Exiles | Discovered new exit (range 14) 649 | -10/Exiles | Met 8R-AWN 673 | -10/Exiles | Met EX-HEX 766 | -10/Exiles | Met EX-DEC 811 | -10/Exiles | Visited The Gauntlet 1073 | -10/Exiles | Met EX-BIN 1358 | -10/Exiles | Learned location of Zion (-6) 1428 | -10/Exiles | Discovered new exit (range 14) 1882 | -10/Exiles | Entered Mines 2001 | -9/Mines | Met a Derelict bent on vengeance 2094 | -9/Mines | Assembled infested the area 2099 | -9/Mines | Assisted by a Guerilla fighting off Assembled 2104 | -9/Mines | Learned Materials security intel 2158 | -9/Mines | Learned Materials interactive machine intel 2169 | -9/Mines | Discovered new exit (range 11) 2259 | -9/Mines | Found a hidden stash of uninstalled traps 2505 | -9/Mines | Core integrity fell below 50% 2582 | -9/Mines | Core integrity fell below 20% 2584 | -9/Mines | Destroyed by as-29390 with Assembled Rifle Last Messages --------------- FRIEND! VENGEANCE!" 02510_ PT-EBZ(g) destroyed. 02515_ Lgt. Ion Engine destroyed. 02515_ Hvy. EM Pulse Gun destroyed. 02517_ as-16216 destroyed. 02519_ Acquired 2 matter. 02521_ Acquired Lgt. Angular Momentum Engine. 02523_ Acquired 10 matter. 02525_ Acquired Wheel. 02528_ Dropped Wheel. 02539_ Acquired 9 matter. 02539_ U-05 Engineer system corrupted by crushing effect. 02539_ Slammed into T-07 Excavator. 02539_ Heat Sink broken. 02539_ Destabilizing: Short circuit. 02540_ Acquired 8 matter. 02551_ Knocked back. 02560_ Acquired 5 matter. 02571_ Wheel destroyed. Map ----- +----------------------------------------------------+ | ?????# #?# ###### #??? | | ??????# #?# ###### ###???# ##??? | | ???????# #### #????####?????# ###???? | | ???????## #?????????????## ##?????? | | ????????# #??????????????## ##??????? | | ????????# < #######???????????????## #???????? | | ????????## #??????????????????????# #???????? | | ?????????## #???????#####?##???????# #???????? | | ??????????## #??????? """ #?????? #???????? | | ??????????## #??????? """ ????? ??????? | | ??????????# #????????""" ???? ?????? | | ??????????# ##???????? ???### #####????? | | ??????????# ##????????? ??????## ###????????? | | ??????????# ##?????????? ????????# ???????????? | | ??????????# #########???# #???????? ???????????? | | ??????????# ##### #??????? ???????????? | | ??????????######## %!%% %#??????? #???????????? | | ?????????????????# #######?????? | ????????????? | | ?????????????????# #???????????? % ????????????? | | ?????????????????# #???????????# #?#??????????? | | ?????????????????#! #???????????## |? ??????????? | | ?????????????????#%=####??????????? %# ??????????? | | ?????????????????#| ##?####?????? =##?????????? | | ?????????????????# ### ##?????]%=##????????? | | ?????????????????## #????? !%!#????????? | | ?????????????????# %@ #????? =%!#????????? | | ?????????????????# & ##a ##???### ##???????? | | ?????????????????#& & ### a###???## # #####!## | | ?????????#???????#&& ##?# #?????# % %! = | | ???????? #???????# ##??# a#?????# ! #???? | | ??# ??? #???????####???#aa#?????#= ###### #???? | | ??# """ #??????????????#[a#?????# ###???????????? | | ??# #??????????????#=%#?????# #####?????????? | | ??# """ #??????????????#!!#?????#% | #?????????? | | ??# """ #????????####??#aa##????##### #?????????? | | ??# """ #???????## ##?# ##??####?# #?????????? | | ??# """ #???????# #?# % #### ### #?????????? | | ??# #???????# #?# ## #?????????? | | ??# #??????## ### % #?????????? | | ??# #??????# ### ####?????????? | | ??# #??????# ### #????????????? | | ??### ####?????## ### ##????????????? | | ????# #????##### ### ###?????????????? | | ????# #???## ### #???????????????? | | ????# #??## ### #???????????????? | | ????# #??# ##### #???????????????? | | ????# #### ##???## ##???????????????? | | ????# ##?????## ##### #????????????????? | | ????##########???????###???## ##????????????????? | | ????????????????????????????####?????????????????? | +----------------------------------------------------+ Best States ------------- Heat Dissipation 35 Energy Generation 18 Energy Capacity 250 Matter Stores 300 Matter Capacity 300 Sight Range 16 Terrain Scan Density 10 Evasion (%) 50 Recoil Reduction 2 Item Schematics ----------------- None Robot Schematics ------------------ None Fabricated ------------ Nothing Repaired ---------- Nothing Studied --------- None Alien Tech Used ----------------- None Achievements -------------- None Challenges ------------ None Game ------ Seed SixIntegrityReconstructor Manual? 0 Play Time 00:17:14 Cumulative 47.0 hours Start 2026.01.08 @ 00:06:06 End 2026.01.16 @ 10:58:17 Sessions 3 Manual Loads 0 Difficulty Rogue Special Mode None Game No. 60 Rogue 60 Adventurer 0 Explorer 0 Win Type - Total 1 Types 0/0/1/0/0/0/0/0/0/0 Lore% 18 Gallery% 37 Achievement% 26 Wizard Run 0 Options --------- Layout 1 ASCII 0 Keyboard 0 Movement Mouse Keybinds 0 Fullscreen 2 Font 32/SmallcapsGlow Map View 50x35 Zoom Use 0% Tactical HUD 1 Map Filters NONE Filters NONE Steam 1 RUN: 1f65514c-baec-4d9a-8da7-b92a67d21123